[Event "NOR-ch Various 2019"]
[Site "Larvik"]
[Date "2019.07.11"]
[Round "7.27"]
[White "Schouten, Mathias Lind"]
[Black "Grave, Jacob Templen"]
[Result "0-1"]
[ECO "B13"]
[WhiteElo "1961"]
[BlackElo "1800"]
[Annotator "NA"]
[PlyCount "90"]
[EventDate "2019.07.06"]
[EventType "swiss"]
[EventCountry "NOR"]
[SourceTitle "playchess.com"]
[Source "ChessBase"]
[SourceQuality "1"]
[TimeControl "40/5400+30:1800+30"]

1. e4 {[%emt 0:00:00]} c6 {[%emt 0:00:00]} 2. d4 {[%emt 0:00:00]} d5 {[%emt 0:00:00]} 3. exd5 {[%emt 0:00:00]} cxd5 {[%emt 0:00:00]} 4. Bd3 {[%emt 0:00:00]} Nc6 {[%emt 0:00:00]} 5. c3 {[%emt 0:00:00]} Nf6 {[%emt 0:00:00]} 6. Bf4 {[%emt 0:00:00]} Bg4 {[%emt 0:01:35]} 7. Qb3 {[%emt 0:00:00]} Qd7 {[%emt 0:00:47]} 8. Nd2 {[%emt 0:00:39]} e6 {[%emt 0:00:19]} 9. Ngf3 {[%emt 0:00:03]} Bxf3 {[%emt 0:01:37]} 10. Nxf3 {[%emt 0:01:08]} Bd6 {[%emt 0:00:16]} 11. Bxd6 {[%emt 0:00:04]} Qxd6 {[%emt 0:00:06]} 12. O-O {[%emt 0:00:06]} O-O {[%emt 0:00:37]} 13. Rae1 {[%emt 0:01:55]} Nd7 {[%emt 0:03:58]} 14. Qc2 {[%emt 0:03:46]} h6 {[%emt 0:01:32]} 15. Qd2 {[%emt 0:03:13]} a6 {[%emt 0:03:01]} 16. Bb1 {[%emt 0:06:57]} b5 {[%emt 0:09:51]} 17. a3 {[%emt 0:01:53]} Rfb8 {[%emt 0:09:30]} 18. Qd3 {[%emt 0:05:40]} Nf8 {[%emt 0:00:32]} 19. Ne5 {[%emt 0:15:44]} Nxe5 {[%emt 0:04:02]} 20. Rxe5 {[%emt 0:00:32]} a5 {[%emt 0:05:14]} 21. f4 {[%emt 0:09:41]} f5 {[%emt 0:08:31]} 22. g4 {[%emt 0:10:11]} g6 {[%emt 0:05:14]} 23. gxf5 {[%emt 0:01:22]} gxf5 {[%emt 0:00:38]} 24. Qg3+ {[%emt 0:00:12]} Kh7 {[%emt 0:01:40]} 25. Rfe1 {[%emt 0:13:11]} Ra7 {[%emt 0:02:03]} 26. Kh1 {[%emt 0:01:25]} Rg7 {[%emt 0:01:25]} 27. Qh3 {[%emt 0:05:21]} Rg6 {[%emt 0:04:45]} 28. Qf1 {[%emt 0:10:26]} Rf6 {[%emt 0:04:48]} 29. h4 {[%emt 0:01:35]} Rb7 {[%emt 0:07:59]} 30. Qe2 {[%emt 0:01:30]} Kh8 {[%emt 0:07:47]} 31. Rg1 {[%emt 0:00:42]} b4 {[%emt 0:01:21]} 32. axb4 {[%emt 0:00:56]} axb4 {[%emt 0:00:05]} 33. h5 {[%emt 0:00:07]} Rff7 {[%emt 0:01:44]} 34. c4 {[%emt 0:02:13]} dxc4 {[%emt 0:01:37]} 35. Qxc4 {[%emt 0:00:04]} Rg7 {[%emt 0:01:59]} 36. d5 {[%emt 0:01:57]} Rxg1+ {[%emt 0:03:22]} 37. Kxg1 {[%emt 0:00:04]} Rg7+ {[%emt 0:00:09]} 38. Kf1 {[%emt 0:00:49]} Qb6 {[%emt 0:01:39]} 39. Bc2 {[%emt 0:00:54]} Qg1+ {[%emt 0:02:36]} 40. Ke2 {[%emt 0:00:04]} Rg2+ {[%emt 0:00:15]} 41. Kd3 {[%emt 0:30:39]} Qf1+ {[%emt 0:07:33]} 42. Kd4 {[%emt 0:00:00]} Qxf4+ {[%emt 0:05:36]} 43. Re4 {[%emt 0:00:00]} fxe4 {[%emt 0:00:44]} 44. Bxe4 {[%emt 0:00:00]} Rd2+ {[%emt 0:00:35]} 45. Kc5 {[%emt 0:00:00]} Qc7+ {[%emt 0:00:18] Kd4} 0-1

[Event "NOR-ch Various 2019"]
[Site "Larvik"]
[Date "2019.07.11"]
[Round "7.28"]
[White "Hobber, Anders"]
[Black "Abdrlauf, Elham"]
[Result "1/2-1/2"]
[ECO "A13"]
[WhiteElo "2294"]
[BlackElo "2235"]
[Annotator "NA"]
[PlyCount "23"]
[EventDate "2019.07.06"]
[EventType "swiss"]
[EventCountry "NOR"]
[SourceTitle "playchess.com"]
[Source "ChessBase"]
[SourceQuality "1"]
[TimeControl "40/5400+30:1800+30"]

1. Nf3 {[%emt 0:00:07]} d5 {[%emt 0:00:00]} 2. e3 {[%emt 0:01:36]} Nf6 {[%emt 0:01:34]} 3. c4 {[%emt 0:04:54]} e6 {[%emt 0:01:52]} 4. b3 {[%emt 0:01:19]} Be7 {[%emt 0:00:34]} 5. Bb2 {[%emt 0:00:36]} O-O {[%emt 0:00:28]} 6. Nc3 {[%emt 0:01:09]} dxc4 {[%emt 0:07:51]} 7. Bxc4 {[%emt 0:03:23]} b6 {[%emt 0:00:48]} 8. O-O {[%emt 0:04:03]} Bb7 {[%emt 0:00:25]} 9. d4 {[%emt 0:04:45]} c5 {[%emt 0:01:21]} 10. Qe2 {[%emt 0:05:26]} cxd4 {[%emt 0:06:29]} 11. Nxd4 {[%emt 0:03:37]} Nc6 {[%emt 0:07:02]} 12. Nxc6 {[%emt 0:08:12]} 1/2-1/2

[Event "NOR-ch Various 2019"]
[Site "Larvik"]
[Date "2019.07.11"]
[Round "7.29"]
[White "Andersen, Lars Even"]
[Black "Aulin-Jansson, Joran"]
[Result "0-1"]
[ECO "E10"]
[WhiteElo "2314"]
[BlackElo "2223"]
[Annotator "ChessBase"]
[PlyCount "67"]
[EventDate "2019.07.06"]
[EventType "swiss"]
[EventCountry "NOR"]
[SourceTitle "playchess.com"]
[Source "ChessBase"]
[SourceQuality "1"]
[TimeControl "40/5400+30:1800+30"]

1. d4 {[%emt 0:00:00]} Nf6 {[%emt 0:00:00]} 2. c4 {[%emt 0:01:02]} e6 {[%emt 0:00:00]} 3. g3 {[%emt 0:01:52]} c5 {[%emt 0:01:43]} 4. Nf3 {[%emt 0:03:53]} cxd4 {[%emt 0:08:25]} 5. Qxd4 {[%emt 0:09:54]} Bb4+ {[%emt 0:01:45]} 6. Nbd2 {[%emt 0:05:03]} Nc6 {[%emt 0:01:29]} 7. Qd3 {[%emt 0:00:21]} O-O {[%emt 0:05:12]} 8. a3 {[%emt 0:06:10]} Be7 {[%emt 0:02:47]} 9. Bg2 {[%emt 0:02:24]} b6 {[%emt 0:00:49]} 10. O-O {[%emt 0:02:59]} Bb7 {[%emt 0:00:10]} 11. b4 {[%emt 0:05:22]} d5 {[%emt 0:06:42]} 12. Rd1 {[%emt 0:22:31]} dxc4 {[%emt 0:00:57]} 13. Qxc4 {[%emt 0:02:42]} Rc8 {[%emt 0:00:14]} 14. Qb3 {[%emt 0:00:14]} Qd5 {[%emt 0:16:03]} 15. Nc4 {[%emt 0:08:33]} Qb5 {[%emt 0:01:30]} 16. Nd6 {[%emt 0:07:31]} Bxd6 {[%emt 0:00:58]} 17. Rxd6 {[%emt 0:00:07]} Qxe2 {[%emt 0:01:53]} 18. Bf1 {[%emt 0:06:36]} Qe4 {[%emt 0:03:10]} 19. Bd3 {[%emt 0:07:12]} Qg4 {[%emt 0:01:05]} 20. Bf1 {[%emt 0:02:23]} Nxb4 {[%emt 0:05:01]} 21. axb4 {[%emt 0:03:01]} Bxf3 {[%emt 0:00:08]} 22. Bb2 {[%emt 0:00:33]} Bd5 {[%emt 0:00:42]} 23. Qe3 {[%emt 0:00:24]} Qxb4 {[%emt 0:08:25]} 24. Bxf6 {[%emt 0:00:41]} gxf6 {[%emt 0:00:06]} 25. Bd3 {[%emt 0:00:28]} Rc3 {[%emt 0:06:11]} 26. Rd7 {[%emt 0:00:19]} Qb3 {[%emt 0:05:54]} 27. Bxh7+ {[%emt 0:00:43]} Kxh7 {[%emt 0:00:11]} 28. Qd4 {[%emt 0:00:30]} Qc4 {[%emt 0:00:20]} 29. Rxd5 {[%emt 0:00:22]} exd5 {[%emt 0:00:11]} 30. Qxf6 {[%emt 0:00:12]} Rc1+ {[%emt 0:00:16]} 31. Rxc1 {[%emt 0:00:07]} Qxc1+ {[%emt 0:00:06]} 32. Kg2 {[%emt 0:00:03]} Qh6 {[%emt 0:00:23]} 33. Qf5+ {[%emt 0:00:20]} Qg6 {[%emt 0:00:21]} 34. Qxd5 {[%emt 0:00:07]} 0-1

[Event "NOR-ch Various 2019"]
[Site "Larvik"]
[Date "2019.07.11"]
[Round "7.30"]
[White "Kristiansen, Willy M"]
[Black "Hole, Oystein"]
[Result "1/2-1/2"]
[ECO "D12"]
[WhiteElo "2118"]
[BlackElo "2293"]
[Annotator "ChessBase"]
[PlyCount "64"]
[EventDate "2019.07.06"]
[EventType "swiss"]
[EventCountry "NOR"]
[SourceTitle "playchess.com"]
[Source "ChessBase"]
[SourceQuality "1"]
[TimeControl "40/5400+30:1800+30"]

1. d4 {[%emt 0:00:00]} d5 {[%emt 0:00:00]} 2. c4 {[%emt 0:00:10]} c6 {[%emt 0:00:00]} 3. Nf3 {[%emt 0:00:08]} Nf6 {[%emt 0:00:01]} 4. e3 {[%emt 0:00:08]} Bf5 {[%emt 0:00:47]} 5. Nc3 {[%emt 0:00:21]} e6 {[%emt 0:00:09]} 6. Bd3 {[%emt 0:02:24]} Bg6 {[%emt 0:00:40]} 7. Ne5 {[%emt 0:00:54]} Nbd7 {[%emt 0:00:11]} 8. Nxg6 {[%emt 0:01:20]} hxg6 {[%emt 0:00:11]} 9. Qe2 {[%emt 0:06:50]} Be7 {[%emt 0:03:37]} 10. Bd2 {[%emt 0:02:40]} Qc7 {[%emt 0:05:03]} 11. h3 {[%emt 0:02:16]} O-O {[%emt 0:00:27]} 12. O-O {[%emt 0:01:06]} Rad8 {[%emt 0:10:32]} 13. Rac1 {[%emt 0:13:25]} dxc4 {[%emt 0:04:47]} 14. Bxc4 {[%emt 0:00:53]} e5 {[%emt 0:00:14]} 15. dxe5 {[%emt 0:05:13]} Nxe5 {[%emt 0:00:45]} 16. Rfd1 {[%emt 0:01:17]} Nxc4 {[%emt 0:03:46]} 17. Qxc4 {[%emt 0:00:19]} Rd7 {[%emt 0:01:09]} 18. Be1 {[%emt 0:01:32]} Rfd8 {[%emt 0:00:56]} 19. Rxd7 {[%emt 0:00:46]} Rxd7 {[%emt 0:00:10]} 20. Rd1 {[%emt 0:01:50]} Rxd1 {[%emt 0:13:00]} 21. Nxd1 {[%emt 0:00:21]} b5 {[%emt 0:00:17]} 22. Qd3 {[%emt 0:02:21]} a6 {[%emt 0:00:17]} 23. a4 {[%emt 0:06:35]} Qd6 {[%emt 0:18:09]} 24. Qxd6 {[%emt 0:01:33]} Bxd6 {[%emt 0:00:01]} 25. axb5 {[%emt 0:00:44]} axb5 {[%emt 0:02:32]} 26. Kf1 {[%emt 0:01:40]} Kf8 {[%emt 0:01:00]} 27. Ke2 {[%emt 0:00:33]} Ke7 {[%emt 0:01:14]} 28. f3 {[%emt 0:04:13]} Kd7 {[%emt 0:00:51]} 29. e4 {[%emt 0:01:17]} c5 {[%emt 0:01:17]} 30. Bc3 {[%emt 0:01:40]} Be7 {[%emt 0:06:29]} 31. Ne3 {[%emt 0:01:52]} c4 {[%emt 0:05:07]} 32. Kd2 {[%emt 0:05:22]} Ne8 {[%emt 0:10:52]} 1/2-1/2

[Event "NOR-ch Various 2019"]
[Site "Larvik"]
[Date "2019.07.11"]
[Round "7.31"]
[White "Demac, Elias"]
[Black "Holleland, Sigve"]
[Result "1/2-1/2"]
[ECO "A34"]
[WhiteElo "2215"]
[BlackElo "2092"]
[Annotator "NA"]
[PlyCount "46"]
[EventDate "2019.07.06"]
[EventType "swiss"]
[EventCountry "NOR"]
[SourceTitle "playchess.com"]
[Source "ChessBase"]
[SourceQuality "1"]
[TimeControl "40/5400+30:1800+30"]

1. Nf3 {[%emt 0:00:00]} Nf6 {[%emt 0:02:09]} 2. c4 {[%emt 0:00:00]} g6 {[%emt 0:00:17]} 3. Nc3 {[%emt 0:00:00]} c5 {[%emt 0:00:45]} 4. g3 {[%emt 0:01:23]} Bg7 {[%emt 0:06:06]} 5. Bg2 {[%emt 0:00:06]} d5 {[%emt 0:01:55]} 6. cxd5 {[%emt 0:03:54]} Nxd5 {[%emt 0:01:00]} 7. Qa4+ {[%emt 0:02:43]} Nc6 {[%emt 0:03:33]} 8. Qc4 {[%emt 0:01:06]} Nxc3 {[%emt 0:03:48]} 9. dxc3 {[%emt 0:05:05]} Qb6 {[%emt 0:02:52]} 10. Ng5 {[%emt 0:05:46]} Ne5 {[%emt 0:02:16]} 11. Qd5 {[%emt 0:04:22]} O-O {[%emt 0:03:35]} 12. O-O {[%emt 0:02:58]} Rd8 {[%emt 0:02:14]} 13. Qb3 {[%emt 0:00:22]} h6 {[%emt 0:00:43]} 14. Nf3 {[%emt 0:03:31]} Be6 {[%emt 0:06:40]} 15. Qxb6 {[%emt 0:00:47]} Nxf3+ {[%emt 0:00:06]} 16. Bxf3 {[%emt 0:00:04]} axb6 {[%emt 0:00:07]} 17. Bxb7 {[%emt 0:01:56]} Rxa2 {[%emt 0:00:21]} 18. Rxa2 {[%emt 0:00:07]} Bxa2 {[%emt 0:00:05]} 19. Be3 {[%emt 0:01:41]} Bc4 {[%emt 0:00:43]} 20. Bf3 {[%emt 0:01:44]} e5 {[%emt 0:06:37]} 21. Rb1 {[%emt 0:06:24]} Bb3 {[%emt 0:02:49]} 22. Ra1 {[%emt 0:00:38]} f5 {[%emt 0:00:32]} 23. Ra8 {[%emt 0:00:15]} Rxa8 {[%emt 0:01:15]} 1/2-1/2

[Event "NOR-ch Various 2019"]
[Site "Larvik"]
[Date "2019.07.11"]
[Round "7.32"]
[White "Fossan, Aleksander"]
[Black "Hagesather, Ellen"]
[Result "0-1"]
[ECO "B07"]
[WhiteElo "2155"]
[BlackElo "2193"]
[Annotator "NA"]
[PlyCount "96"]
[EventDate "2019.07.06"]
[EventType "swiss"]
[EventCountry "NOR"]
[SourceTitle "playchess.com"]
[Source "ChessBase"]
[SourceQuality "1"]
[TimeControl "40/5400+30:1800+30"]

1. e4 {[%emt 0:00:58]} d6 {[%emt 0:00:00]} 2. d4 {[%emt 0:00:08]} Nf6 {[%emt 0:00:00]} 3. Nc3 {[%emt 0:00:18]} g6 {[%emt 0:00:00]} 4. Be3 {[%emt 0:00:24]} c6 {[%emt 0:00:00]} 5. Qd2 {[%emt 0:00:22]} b5 {[%emt 0:00:10]} 6. Bd3 {[%emt 0:00:15]} Nbd7 {[%emt 0:00:22]} 7. Nf3 {[%emt 0:00:23]} e5 {[%emt 0:00:21]} 8. h3 {[%emt 0:00:39]} Bb7 {[%emt 0:00:56]} 9. dxe5 {[%emt 0:01:14]} dxe5 {[%emt 0:00:11]} 10. O-O {[%emt 0:01:32]} Bg7 {[%emt 0:00:52]} 11. a4 {[%emt 0:00:15]} b4 {[%emt 0:01:04]} 12. Ne2 {[%emt 0:00:53]} Qe7 {[%emt 0:01:06]} 13. Ng3 {[%emt 0:07:25]} a5 {[%emt 0:02:00]} 14. c3 {[%emt 0:02:48]} O-O {[%emt 0:02:29]} 15. cxb4 {[%emt 0:00:42]} Qxb4 {[%emt 0:00:59]} 16. Qxb4 {[%emt 0:01:32]} axb4 {[%emt 0:00:05]} 17. b3 {[%emt 0:01:40]} Rfe8 {[%emt 0:05:57]} 18. Rac1 {[%emt 0:01:43]} Bf8 {[%emt 0:01:33]} 19. Rfd1 {[%emt 0:04:42]} Ra5 {[%emt 0:04:04]} 20. Nd2 {[%emt 0:08:44]} Nc5 {[%emt 0:03:31]} 21. Bxc5 {[%emt 0:21:28]} Bxc5 {[%emt 0:00:42]} 22. Nc4 {[%emt 0:00:20]} Raa8 {[%emt 0:10:43]} 23. Be2 {[%emt 0:00:52]} Re6 {[%emt 0:01:56]} 24. Nb2 {[%emt 0:02:48]} Bd4 {[%emt 0:00:55]} 25. Nd3 {[%emt 0:00:11]} h5 {[%emt 0:07:11]} 26. h4 {[%emt 0:02:45]} Ra5 {[%emt 0:10:07]} 27. Nxb4 {[%emt 0:03:36]} c5 {[%emt 0:00:10]} 28. Nd5 {[%emt 0:02:11]} Nxd5 {[%emt 0:01:12]} 29. exd5 {[%emt 0:00:08]} Bxd5 {[%emt 0:00:18]} 30. Bc4 {[%emt 0:00:29]} Bxc4 {[%emt 0:03:13]} 31. Rxc4 {[%emt 0:00:06]} Rf6 {[%emt 0:00:48]} 32. Nh1 {[%emt 0:03:10]} Rf4 {[%emt 0:00:58]} 33. g3 {[%emt 0:03:50]} Rf3 {[%emt 0:02:44]} 34. Rb1 {[%emt 0:02:13]} Ra6 {[%emt 0:03:16]} 35. Kg2 {[%emt 0:00:00]} e4 {[%emt 0:02:02]} 36. Re1 {[%emt 0:00:40]} f5 {[%emt 0:00:26]} 37. Rb1 {[%emt 0:00:08]} Rd3 {[%emt 0:02:48]} 38. Kf1 {[%emt 0:02:55]} Kf7 {[%emt 0:01:14]} 39. Ke2 {[%emt 0:01:27]} Ke6 {[%emt 0:00:29]} 40. Rc2 {[%emt 0:02:33]} Rb6 {[%emt 0:02:04]} 41. Ra2 {[%emt 0:01:27]} Rdxb3 {[%emt 0:31:45]} 42. Rxb3 {[%emt 0:30:12]} Rxb3 {[%emt 0:00:05]} 43. a5 {[%emt 0:00:31]} c4 {[%emt 0:01:21]} 44. a6 {[%emt 0:00:13]} Ba7 {[%emt 0:03:08]} 45. Ra1 {[%emt 0:02:43]} Rb2+ {[%emt 0:00:00]} 46. Kf1 {[%emt 0:00:14]} c3 {[%emt 0:00:36]} 47. Rc1 {[%emt 0:01:41]} Bd4 {[%emt 0:02:43]} 48. a7 {[%emt 0:02:01]} Ra2 {[%emt 0:00:27]} 0-1

[Event "NOR-ch Various 2019"]
[Site "Larvik"]
[Date "2019.07.11"]
[Round "7.32"]
[White "Fossan, Aleksander"]
[Black "Hagesæther, WEllen"]
[Result "*"]
[ECO "B07"]
[WhiteElo "2155"]
[BlackElo "2193"]
[Annotator "ChessBase"]
[PlyCount "70"]
[EventDate "2019.07.06"]
[EventType "swiss"]
[EventCountry "NOR"]
[SourceTitle "playchess.com"]
[Source "ChessBase"]
[SourceQuality "1"]
[TimeControl "40/5400+30:1800+30"]

1. e4 {[%emt 0:00:58]} d6 {[%emt 0:00:00]} 2. d4 {[%emt 0:00:08]} Nf6 {[%emt 0:00:00]} 3. Nc3 {[%emt 0:00:18]} g6 {[%emt 0:00:00]} 4. Be3 {[%emt 0:00:24]} c6 {[%emt 0:00:00]} 5. Qd2 {[%emt 0:00:22]} b5 {[%emt 0:00:10]} 6. Bd3 {[%emt 0:00:15]} Nbd7 {[%emt 0:00:22]} 7. Nf3 {[%emt 0:00:23]} e5 {[%emt 0:00:21]} 8. h3 {[%emt 0:00:39]} Bb7 {[%emt 0:00:56]} 9. dxe5 {[%emt 0:01:14]} dxe5 {[%emt 0:00:11]} 10. O-O {[%emt 0:01:32]} Bg7 {[%emt 0:00:52]} 11. a4 {[%emt 0:00:15]} b4 {[%emt 0:01:04]} 12. Ne2 {[%emt 0:00:53]} Qe7 {[%emt 0:01:06]} 13. Ng3 {[%emt 0:07:25]} a5 {[%emt 0:02:00]} 14. c3 {[%emt 0:02:48]} O-O {[%emt 0:02:29]} 15. cxb4 {[%emt 0:00:44]} Qxb4 {[%emt 0:00:59]} 16. Qxb4 {[%emt 0:01:32]} axb4 {[%emt 0:00:05]} 17. b3 {[%emt 0:01:40]} Rfe8 {[%emt 0:05:57]} 18. Rac1 {[%emt 0:01:43]} Bf8 {[%emt 0:01:33]} 19. Rfd1 {[%emt 0:04:42]} Ra5 {[%emt 0:04:04]} 20. Nd2 {[%emt 0:08:44]} Nc5 {[%emt 0:03:31]} 21. Bxc5 {[%emt 0:21:28]} Bxc5 {[%emt 0:00:42]} 22. Nc4 {[%emt 0:00:20]} Raa8 {[%emt 0:10:43]} 23. Be2 {[%emt 0:00:52]} Re6 {[%emt 0:01:56]} 24. Nb2 {[%emt 0:02:48]} Bd4 {[%emt 0:00:55]} 25. Nd3 {[%emt 0:00:12]} h5 {[%emt 0:07:11]} 26. h4 {[%emt 0:02:45]} Ra5 {[%emt 0:10:07]} 27. Nxb4 {[%emt 0:03:36]} c5 {[%emt 0:00:10]} 28. Nd5 {[%emt 0:02:11]} Nxd5 {[%emt 0:01:12]} 29. exd5 {[%emt 0:00:08]} Bxd5 {[%emt 0:00:18]} 30. Bc4 {[%emt 0:00:29]} Bxc4 {[%emt 0:03:13]} 31. Rxc4 {[%emt 0:00:06]} Rf6 {[%emt 0:00:46]} 32. Nh1 {[%emt 0:03:10]} Rf4 {[%emt 0:00:58]} 33. g3 {[%emt 0:01:07]} Rf3 {[%emt 0:02:44]} 34. Rb1 {[%emt 0:00:00]} Ra6 {[%emt 0:00:03]} 35. Kg2 {[%emt 0:00:00]} e4 {[%emt 0:02:02]} *

[Event "NOR-ch Various 2019"]
[Site "Larvik"]
[Date "2019.07.11"]
[Round "7.33"]
[White "Martinsen, Stig K"]
[Black "Brodtkorb, Lars Johan"]
[Result "0-1"]
[ECO "A13"]
[WhiteElo "2177"]
[BlackElo "2077"]
[Annotator "NA"]
[PlyCount "84"]
[EventDate "2019.07.06"]
[EventType "swiss"]
[EventCountry "NOR"]
[SourceTitle "playchess.com"]
[Source "ChessBase"]
[SourceQuality "1"]
[TimeControl "40/5400+30:1800+30"]

1. Nf3 {[%emt 0:04:43]} d5 {[%emt 0:00:24]} 2. c4 {[%emt 0:00:30]} e6 {[%emt 0:00:25]} 3. g3 {[%emt 0:00:29]} Nf6 {[%emt 0:01:16]} 4. Bg2 {[%emt 0:00:25]} d4 {[%emt 0:00:41]} 5. O-O {[%emt 0:02:01]} c5 {[%emt 0:00:32]} 6. e3 {[%emt 0:02:10]} Nc6 {[%emt 0:00:14]} 7. exd4 {[%emt 0:00:41]} cxd4 {[%emt 0:00:03]} 8. d3 {[%emt 0:00:28]} Bd6 {[%emt 0:00:33]} 9. Bg5 {[%emt 0:00:30]} h6 {[%emt 0:00:59]} 10. Bxf6 {[%emt 0:00:48]} Qxf6 {[%emt 0:00:02]} 11. Nbd2 {[%emt 0:00:16]} Qd8 {[%emt 0:01:11]} 12. a3 {[%emt 0:00:24]} O-O {[%emt 0:10:09]} 13. b4 {[%emt 0:11:15]} Re8 {[%emt 0:00:33]} 14. Re1 {[%emt 0:18:44]} e5 {[%emt 0:10:19]} 15. c5 {[%emt 0:07:04]} Bc7 {[%emt 0:02:08]} 16. b5 {[%emt 0:06:57]} Na5 {[%emt 0:00:16]} 17. Nh4 {[%emt 0:13:52]} g5 {[%emt 0:03:25]} 18. Nhf3 {[%emt 0:00:30]} Kg7 {[%emt 0:01:49]} 19. Qa4 {[%emt 0:10:59]} Bf5 {[%emt 0:06:42]} 20. Ne4 {[%emt 0:01:44]} Bd7 {[%emt 0:00:31]} 21. Qb4 {[%emt 0:04:34]} f6 {[%emt 0:04:24]} 22. Rab1 {[%emt 0:02:15]} Rg8 {[%emt 0:03:29]} 23. b6 {[%emt 0:05:31]} axb6 {[%emt 0:00:09]} 24. cxb6 {[%emt 0:00:05]} Bb8 {[%emt 0:00:23]} 25. Rec1 {[%emt 0:01:26]} Nc6 {[%emt 0:05:13]} 26. Qb2 {[%emt 0:01:12]} Qe7 {[%emt 0:00:42]} 27. Ra1 {[%emt 0:01:29]} Ra5 {[%emt 0:01:55]} 28. Ned2 {[%emt 0:01:18]} Ra6 {[%emt 0:05:59]} 29. Nc4 {[%emt 0:00:51]} Nd8 {[%emt 0:03:37]} 30. Nfd2 {[%emt 0:00:36]} Ba4 {[%emt 0:04:18]} 31. Qb4 {[%emt 0:01:03]} Qd7 {[%emt 0:02:41]} 32. Rab1 {[%emt 0:00:29]} Nc6 {[%emt 0:03:13]} 33. Qb2 {[%emt 0:00:27]} Ne7 {[%emt 0:01:42]} 34. Nb3 {[%emt 0:00:38]} Rc8 {[%emt 0:01:07]} 35. Nba5 {[%emt 0:00:29]} Nd5 {[%emt 0:00:34]} 36. Bxd5 {[%emt 0:00:31]} Qxd5 {[%emt 0:00:09]} 37. Qb4 {[%emt 0:00:24]} Bd7 {[%emt 0:01:57]} 38. Qe7+ {[%emt 0:00:31]} Kg6 {[%emt 0:01:14]} 39. Nxe5+ {[%emt 0:00:35]} Bxe5 {[%emt 0:02:54]} 40. Rxc8 {[%emt 0:00:23]} Bxc8 {[%emt 0:06:15]} 41. Qe8+ {[%emt 0:02:03]} Qf7 {[%emt 0:02:17]} 42. Qxc8 {[%emt 0:00:23]} Rxa5 {[%emt 0:00:06]} 0-1

[Event "NOR-ch Various 2019"]
[Site "Larvik"]
[Date "2019.07.11"]
[Round "7.34"]
[White "Moen, Ole Christian"]
[Black "Huse, Sigurd Kjelsbol"]
[Result "1/2-1/2"]
[ECO "C42"]
[WhiteElo "2234"]
[BlackElo "2122"]
[Annotator "NA"]
[PlyCount "104"]
[EventDate "2019.07.06"]
[EventType "swiss"]
[EventCountry "NOR"]
[SourceTitle "playchess.com"]
[Source "ChessBase"]
[SourceQuality "1"]
[TimeControl "40/5400+30:1800+30"]

1. e4 {[%emt 0:00:00]} e5 {[%emt 0:00:00]} 2. Bc4 {[%emt 0:00:10]} Nf6 {[%emt 0:00:00]} 3. Nc3 {[%emt 0:00:04]} Bb4 {[%emt 0:01:10]} 4. Nf3 {[%emt 0:02:33]} Nc6 {[%emt 0:00:07]} 5. O-O {[%emt 0:01:33]} O-O {[%emt 0:00:23]} 6. Re1 {[%emt 0:00:14]} d6 {[%emt 0:03:00]} 7. a3 {[%emt 0:00:45]} Bc5 {[%emt 0:05:45]} 8. Na4 {[%emt 0:04:04]} Bb6 {[%emt 0:07:00]} 9. Nxb6 {[%emt 0:06:08]} axb6 {[%emt 0:00:07]} 10. h3 {[%emt 0:00:05]} Be6 {[%emt 0:02:40]} 11. Bf1 {[%emt 0:00:06]} Ne7 {[%emt 0:01:07]} 12. d4 {[%emt 0:01:40]} Ng6 {[%emt 0:01:27]} 13. Bd2 {[%emt 0:04:35]} Bd7 {[%emt 0:06:14]} 14. Bc3 {[%emt 0:02:29]} Re8 {[%emt 0:01:11]} 15. Bc4 {[%emt 0:12:32]} h6 {[%emt 0:04:07]} 16. Qd2 {[%emt 0:12:07]} Bc6 {[%emt 0:02:23]} 17. d5 {[%emt 0:13:21]} Bd7 {[%emt 0:00:08]} 18. Bf1 {[%emt 0:01:12]} Nh7 {[%emt 0:03:22]} 19. a4 {[%emt 0:02:03]} f5 {[%emt 0:02:55]} 20. exf5 {[%emt 0:01:40]} Bxf5 {[%emt 0:00:09]} 21. Bd3 {[%emt 0:02:19]} Rf8 {[%emt 0:02:52]} 22. Bxf5 {[%emt 0:00:58]} Rxf5 {[%emt 0:00:06]} 23. Qd3 {[%emt 0:00:16]} Qf6 {[%emt 0:01:45]} 24. Bd2 {[%emt 0:00:06]} Nf4 {[%emt 0:03:52]} 25. Bxf4 {[%emt 0:01:03]} Rxf4 {[%emt 0:00:12]} 26. Re4 {[%emt 0:00:09]} Rf8 {[%emt 0:04:45]} 27. Rae1 {[%emt 0:07:06]} Ng5 {[%emt 0:03:34]} 28. Nxg5 {[%emt 0:07:43]} Qxg5 {[%emt 0:00:48]} 29. R1e2 {[%emt 0:07:57]} Rxe4 {[%emt 0:02:16]} 30. Qxe4 {[%emt 0:04:04]} Qc1+ {[%emt 0:00:11]} 31. Kh2 {[%emt 0:00:33]} Qxb2 {[%emt 0:00:14]} 32. Qc4 {[%emt 0:00:18]} Rf7 {[%emt 0:01:33]} 33. f3 {[%emt 0:00:26]} Qc1 {[%emt 0:01:03]} 34. Re4 {[%emt 0:00:06]} Qd2 {[%emt 0:03:54]} 35. Rg4 {[%emt 0:01:15]} Rf4 {[%emt 0:03:31]} 36. Qxc7 {[%emt 0:00:55]} Rxg4 {[%emt 0:00:35]} 37. hxg4 {[%emt 0:00:06]} Qxd5 {[%emt 0:01:22]} 38. Qxb6 {[%emt 0:00:40]} Kh7 {[%emt 0:00:47]} 39. a5 {[%emt 0:04:05]} Kh8 {[%emt 0:02:48]} 40. c4 {[%emt 0:00:42]} Qxc4 {[%emt 0:04:30]} 41. Qxb7 {[%emt 0:30:14]} Qf4+ {[%emt 0:31:17]} 42. Kh3 {[%emt 0:00:07]} Qc1 {[%emt 0:00:04]} 43. Qa8+ {[%emt 0:00:16]} Kh7 {[%emt 0:00:12]} 44. Qe4+ {[%emt 0:00:06]} Kh8 {[%emt 0:01:01]} 45. a6 {[%emt 0:00:11]} Qa1 {[%emt 0:01:40]} 46. Qa8+ {[%emt 0:00:24]} Kh7 {[%emt 0:00:05]} 47. Kh2 {[%emt 0:00:05]} d5 {[%emt 0:03:37]} 48. a7 {[%emt 0:00:25]} Qe1 {[%emt 0:02:21]} 49. Qd8 {[%emt 0:00:50]} g5 {[%emt 0:00:11]} 50. Qc7+ {[%emt 0:02:16]} Kg6 {[%emt 0:00:08]} 51. Qb6+ {[%emt 0:00:06]} Kf7 {[%emt 0:00:12]} 52. a8=Q {[%emt 0:00:09]} Qh4+ {[%emt 0:00:20]} 1/2-1/2